[Event "Early-Titled-Tuesday-Blitz-October-10-2023"]
[Site "Chess.com"]
[Date "2023.10.10"]
[Round "1"]
[White "dosto07"]
[Black "Sanan_Sjugirov"]
[Result "0-1"]
[WhiteElo "2506"]
[BlackElo "2951"]
[TimeControl "180+1"]
[EndTime "8:05:28 PDT"]
[Termination "Sanan_Sjugirov won by resignation"]

1. e4 {[%clk 0:03:00.9]} 1... c5 {[%clk 0:02:59.6]} 2. Nf3 {[%clk 0:03:01]} 2...
Nc6 {[%clk 0:02:59.7]} 3. Bb5 {[%clk 0:03:01.1]} 3... g6 {[%clk 0:02:59.6]} 4.
Bxc6 {[%clk 0:03:01.4]} 4... dxc6 {[%clk 0:02:58]} 5. d3 {[%clk 0:03:01]} 5...
Bg7 {[%clk 0:02:57.2]} 6. h3 {[%clk 0:03:01.4]} 6... e5 {[%clk 0:02:56.1]} 7.
Nc3 {[%clk 0:03:01.8]} 7... Ne7 {[%clk 0:02:55.6]} 8. Be3 {[%clk 0:03:02.4]}
8... b6 {[%clk 0:02:55.4]} 9. Qd2 {[%clk 0:03:02.8]} 9... h6 {[%clk 0:02:54.8]}
10. a4 {[%clk 0:03:00.6]} 10... a5 {[%clk 0:02:54.2]} 11. Nh2 {[%clk 0:02:56.5]}
11... Be6 {[%clk 0:02:50]} 12. f4 {[%clk 0:02:49.9]} 12... exf4 {[%clk
0:02:49.9]} 13. Bxf4 {[%clk 0:02:50.3]} 13... g5 {[%clk 0:02:48.7]} 14. Bg3
{[%clk 0:02:43.6]} 14... f5 {[%clk 0:02:47.5]} 15. exf5 {[%clk 0:02:36.9]} 15...
Nxf5 {[%clk 0:02:47.4]} 16. Bf2 {[%clk 0:02:35.5]} 16... O-O {[%clk 0:02:46.3]}
17. O-O {[%clk 0:02:30.7]} 17... Qd7 {[%clk 0:02:40.4]} 18. Rae1 {[%clk
0:02:28.6]} 18... Rae8 {[%clk 0:02:39.8]} 19. Nf3 {[%clk 0:02:27.8]} 19... Bd5
{[%clk 0:02:31.8]} 20. Nxd5 {[%clk 0:02:17.6]} 20... cxd5 {[%clk 0:02:32.7]} 21.
d4 {[%clk 0:02:15.1]} 21... c4 {[%clk 0:02:25.4]} 22. Rxe8 {[%clk 0:02:05.8]}
22... Rxe8 {[%clk 0:02:25]} 23. Re1 {[%clk 0:02:06.7]} 23... Nd6 {[%clk
0:02:10.7]} 24. Ne5 {[%clk 0:02:01.8]} 24... Qf5 {[%clk 0:02:00.2]} 25. Bg3
{[%clk 0:01:51.6]} 25... Ne4 {[%clk 0:01:59.2]} 26. Qe3 {[%clk 0:01:51.9]} 26...
Rf8 {[%clk 0:01:50.6]} 27. Kh2 {[%clk 0:01:41.9]} 27... h5 {[%clk 0:01:47.6]}
28. Nc6 {[%clk 0:01:31.2]} 28... Qf6 {[%clk 0:01:31.1]} 29. Na7 {[%clk
0:01:05.8]} 29... Qxd4 {[%clk 0:01:30.3]} 30. Qxd4 {[%clk 0:01:03.6]} 30... Bxd4
{[%clk 0:01:31.2]} 31. c3 {[%clk 0:01:03.9]} 31... h4 {[%clk 0:01:24.3]} 32. Bc7
{[%clk 0:00:47.3]} 32... Bf2 {[%clk 0:01:23.2]} 33. Re2 {[%clk 0:00:45.5]} 33...
Rf7 {[%clk 0:01:18.7]} 34. Bd8 {[%clk 0:00:44.6]} 34... Bg3+ {[%clk 0:01:16.9]}
35. Kg1 {[%clk 0:00:43.7]} 35... Rxa7 {[%clk 0:01:17.3]} 0-1

[Event "Early-Titled-Tuesday-Blitz-October-10-2023"]
[Site "Chess.com"]
[Date "2023.10.10"]
[Round "1"]
[White "arenal72"]
[Black "GianmarcoVaR"]
[Result "1-0"]
[WhiteElo "2407"]
[BlackElo "2677"]
[TimeControl "180+1"]
[EndTime "8:05:28 PDT"]
[Termination "arenal72 won by resignation"]

1. Nf3 {[%clk 0:02:58.2]} 1... Nf6 {[%clk 0:02:57.2]} 2. g3 {[%clk 0:02:57.8]}
2... d5 {[%clk 0:02:55.8]} 3. Bg2 {[%clk 0:02:57.4]} 3... c6 {[%clk 0:02:55.9]}
4. O-O {[%clk 0:02:56.7]} 4... Bf5 {[%clk 0:02:56.5]} 5. d3 {[%clk 0:02:56.8]}
5... e6 {[%clk 0:02:56.9]} 6. c4 {[%clk 0:02:56.8]} 6... Be7 {[%clk 0:02:55.1]}
7. Nc3 {[%clk 0:02:56.6]} 7... O-O {[%clk 0:02:55.1]} 8. Be3 {[%clk 0:02:56.5]}
8... Nbd7 {[%clk 0:02:54.6]} 9. Qb3 {[%clk 0:02:55.9]} 9... dxc4 {[%clk
0:02:31.6]} 10. dxc4 {[%clk 0:02:53.7]} 10... Qc7 {[%clk 0:02:31.8]} 11. Nh4
{[%clk 0:02:38.6]} 11... Bg4 {[%clk 0:02:28.5]} 12. h3 {[%clk 0:02:32.6]} 12...
Bh5 {[%clk 0:02:27.7]} 13. Rad1 {[%clk 0:02:31.4]} 13... Bc5 {[%clk 0:02:17.2]}
14. Bxc5 {[%clk 0:02:24.6]} 14... Nxc5 {[%clk 0:02:17.5]} 15. Qa3 {[%clk
0:02:24.6]} 15... Qe5 {[%clk 0:01:59.1]} 16. Nf3 {[%clk 0:02:17.8]} 16... Bxf3
{[%clk 0:01:58.2]} 17. Bxf3 {[%clk 0:02:18.7]} 17... Nfd7 {[%clk 0:01:38.8]} 18.
b4 {[%clk 0:02:15.1]} 18... Rfd8 {[%clk 0:01:04.9]} 19. bxc5 {[%clk 0:02:13.8]}
19... Qxc5 {[%clk 0:01:05.8]} 20. Qxc5 {[%clk 0:02:08]} 20... Nxc5 {[%clk
0:01:06.3]} 21. Ne4 {[%clk 0:02:07.8]} 21... Nxe4 {[%clk 0:00:58.7]} 22. Bxe4
{[%clk 0:02:08.7]} 22... Kf8 {[%clk 0:00:50.3]} 23. e3 {[%clk 0:02:03.2]} 23...
Ke7 {[%clk 0:00:50.3]} 24. f4 {[%clk 0:01:59.6]} 24... Rac8 {[%clk 0:00:47.2]}
25. Kf2 {[%clk 0:01:56.8]} 25... Rh8 {[%clk 0:00:23.6]} 26. Ke2 {[%clk
0:01:52.8]} 26... Rc7 {[%clk 0:00:24]} 27. Rd2 {[%clk 0:01:50.2]} 27... h5
{[%clk 0:00:24]} 28. Rfd1 {[%clk 0:01:49.2]} 28... g6 {[%clk 0:00:21.3]} 29. a4
{[%clk 0:01:43.6]} 29... a5 {[%clk 0:00:20.6]} 30. c5 {[%clk 0:01:39.5]} 30...
Ra8 {[%clk 0:00:20.8]} 31. Rb2 {[%clk 0:01:37.1]} 31... Ke8 {[%clk 0:00:14.7]}
32. Rxb7 {[%clk 0:01:34.6]} 1-0

[Event "Early-Titled-Tuesday-Blitz-October-10-2023"]
[Site "Chess.com"]
[Date "2023.10.10"]
[Round "1"]
[White "MdChess1734"]
[Black "RETURNOFTHELAGGER"]
[Result "0-1"]
[WhiteElo "2386"]
[BlackElo "2688"]
[TimeControl "180+1"]
[EndTime "8:05:28 PDT"]
[Termination "RETURNOFTHELAGGER won on time"]

1. e4 {[%clk 0:02:52.5]} 1... c5 {[%clk 0:02:54.6]} 2. Nf3 {[%clk 0:02:52.6]}
2... d6 {[%clk 0:02:54.8]} 3. d4 {[%clk 0:02:52.9]} 3... cxd4 {[%clk 0:02:55.7]}
4. Nxd4 {[%clk 0:02:52.2]} 4... Nf6 {[%clk 0:02:56.3]} 5. Nc3 {[%clk 0:02:52.5]}
5... a6 {[%clk 0:02:57.2]} 6. Bg5 {[%clk 0:02:52.7]} 6... Nbd7 {[%clk 0:02:53]}
7. f4 {[%clk 0:02:52.7]} 7... Qc7 {[%clk 0:02:51.6]} 8. Qf3 {[%clk 0:02:50.3]}
8... h6 {[%clk 0:02:49.4]} 9. Bxf6 {[%clk 0:02:44.2]} 9... Nxf6 {[%clk
0:02:50.3]} 10. f5 {[%clk 0:02:44.6]} 10... e5 {[%clk 0:02:46.9]} 11. fxe6
{[%clk 0:01:49.3]} 11... fxe6 {[%clk 0:02:47.8]} 12. O-O-O {[%clk 0:01:48.5]}
12... Be7 {[%clk 0:02:43.1]} 13. g4 {[%clk 0:01:19.4]} 13... O-O {[%clk
0:02:42.5]} 14. Qg3 {[%clk 0:01:18.9]} 14... b5 {[%clk 0:02:36.8]} 15. Bg2
{[%clk 0:01:18.2]} 15... b4 {[%clk 0:02:33.2]} 16. Nce2 {[%clk 0:01:17.8]} 16...
a5 {[%clk 0:02:33.4]} 17. Nf4 {[%clk 0:01:09.2]} 17... e5 {[%clk 0:02:08.3]} 18.
Nfe6 {[%clk 0:01:07.1]} 18... Qc4 {[%clk 0:02:08.7]} 19. Nxf8 {[%clk 0:01:04.8]}
19... Kxf8 {[%clk 0:02:08.4]} 20. b3 {[%clk 0:00:46.4]} 20... Qc5 {[%clk
0:02:04.4]} 21. g5 {[%clk 0:00:42.5]} 21... hxg5 {[%clk 0:02:01.9]} 22. Nf5
{[%clk 0:00:10.2]} 22... Bxf5 {[%clk 0:01:41.7]} 23. exf5 {[%clk 0:00:09.7]}
23... Rc8 {[%clk 0:01:42.6]} 24. Rd2 {[%clk 0:00:10]} 24... a4 {[%clk
0:01:43.1]} 0-1

[Event "Early-Titled-Tuesday-Blitz-October-10-2023"]
[Site "Chess.com"]
[Date "2023.10.10"]
[Round "1"]
[White "nitpicker"]
[Black "DanyKopy"]
[Result "0-1"]
[WhiteElo "2258"]
[BlackElo "2591"]
[TimeControl "180+1"]
[EndTime "8:05:36 PDT"]
[Termination "DanyKopy won by resignation"]

1. d4 {[%clk 0:03:00.9]} 1... d5 {[%clk 0:02:57.8]} 2. c4 {[%clk 0:02:59.6]}
2... e6 {[%clk 0:02:56]} 3. Nf3 {[%clk 0:02:59.4]} 3... Nf6 {[%clk 0:02:54.3]}
4. g3 {[%clk 0:02:58.1]} 4... Be7 {[%clk 0:02:54.2]} 5. Bg2 {[%clk 0:02:57.9]}
5... O-O {[%clk 0:02:54.2]} 6. O-O {[%clk 0:02:57.3]} 6... c6 {[%clk 0:02:54.8]}
7. Qc2 {[%clk 0:02:56.3]} 7... Nbd7 {[%clk 0:02:54.3]} 8. Rd1 {[%clk 0:02:52.4]}
8... b5 {[%clk 0:02:49.9]} 9. c5 {[%clk 0:02:37.4]} 9... Ne4 {[%clk 0:02:46.1]}
10. Ne5 {[%clk 0:02:24.8]} 10... Nxe5 {[%clk 0:02:23.9]} 11. Bxe4 {[%clk
0:02:24.5]} 11... Ng6 {[%clk 0:02:04.1]} 12. Bg2 {[%clk 0:02:24.4]} 12... e5
{[%clk 0:02:01.3]} 13. Be3 {[%clk 0:01:59.6]} 13... Be6 {[%clk 0:01:51.9]} 14.
Nd2 {[%clk 0:01:56.2]} 14... Qd7 {[%clk 0:01:47.3]} 15. h4 {[%clk 0:01:47.4]}
15... h5 {[%clk 0:01:38.2]} 16. Nf3 {[%clk 0:01:41.2]} 16... e4 {[%clk
0:01:33.1]} 17. Ng5 {[%clk 0:01:36.1]} 17... Bxg5 {[%clk 0:01:31.4]} 18. hxg5
{[%clk 0:01:32.7]} 18... Bh3 {[%clk 0:01:29.7]} 19. Kh2 {[%clk 0:01:30.8]} 19...
Bxg2 {[%clk 0:01:28.3]} 20. Kxg2 {[%clk 0:01:31.7]} 20... Qg4 {[%clk 0:01:23.6]}
21. f3 {[%clk 0:01:19.7]} 21... exf3+ {[%clk 0:01:22.4]} 22. exf3 {[%clk
0:01:07.9]} 22... Nh4+ {[%clk 0:01:22.3]} 23. Kh2 {[%clk 0:01:08.3]} 23... Nxf3+
{[%clk 0:01:18.1]} 24. Kg2 {[%clk 0:01:08.5]} 24... Rae8 {[%clk 0:01:16.3]} 25.
Bf4 {[%clk 0:01:06.4]} 25... Nh4+ {[%clk 0:01:14.1]} 26. Kg1 {[%clk 0:01:01.4]}
26... Re2 {[%clk 0:01:12.4]} 27. Qd3 {[%clk 0:00:55.1]} 27... Rfe8 {[%clk
0:00:59.2]} 28. Rf1 {[%clk 0:00:52.5]} 28... Qh3 {[%clk 0:00:55]} 29. Rf2 {[%clk
0:00:52.3]} 29... Rxf2 {[%clk 0:00:54.6]} 30. Qh7+ {[%clk 0:00:41.6]} 0-1

[Event "Early-Titled-Tuesday-Blitz-October-10-2023"]
[Site "Chess.com"]
[Date "2023.10.10"]
[Round "1"]
[White "juancruzarias"]
[Black "KatakuriDono"]
[Result "1-0"]
[WhiteElo "2631"]
[BlackElo "2330"]
[TimeControl "180+1"]
[EndTime "8:05:41 PDT"]
[Termination "juancruzarias won by resignation"]

1. e4 {[%clk 0:03:00.9]} 1... e5 {[%clk 0:02:58.7]} 2. Nf3 {[%clk 0:03:00.7]}
2... Nc6 {[%clk 0:02:59]} 3. Bc4 {[%clk 0:03:00.2]} 3... Nf6 {[%clk 0:02:58.8]}
4. d3 {[%clk 0:03:00.5]} 4... Be7 {[%clk 0:02:58.8]} 5. c3 {[%clk 0:02:59.8]}
5... O-O {[%clk 0:02:58.6]} 6. Bb3 {[%clk 0:02:59.7]} 6... d5 {[%clk 0:02:55.2]}
7. Nbd2 {[%clk 0:02:59.9]} 7... dxe4 {[%clk 0:02:54]} 8. dxe4 {[%clk 0:03:00.8]}
8... a5 {[%clk 0:02:51.6]} 9. O-O {[%clk 0:03:00.8]} 9... Bg4 {[%clk 0:02:46.3]}
10. h3 {[%clk 0:02:58.2]} 10... Bh5 {[%clk 0:02:46.5]} 11. Re1 {[%clk
0:02:55.8]} 11... Re8 {[%clk 0:02:38.8]} 12. Ba4 {[%clk 0:02:47.7]} 12... Bd6
{[%clk 0:02:24.1]} 13. Qe2 {[%clk 0:02:45]} 13... h6 {[%clk 0:02:21.8]} 14. Qf1
{[%clk 0:02:44.4]} 14... Nh7 {[%clk 0:02:04.3]} 15. Bd1 {[%clk 0:02:35.5]} 15...
Nf8 {[%clk 0:02:01.4]} 16. Nc4 {[%clk 0:02:32.7]} 16... Bc5 {[%clk 0:01:55.6]}
17. Ne3 {[%clk 0:02:29.9]} 17... Bg6 {[%clk 0:01:50.3]} 18. Qb5 {[%clk
0:02:23.9]} 18... Bb6 {[%clk 0:01:45.9]} 19. Bc2 {[%clk 0:02:18.4]} 19... Ne6
{[%clk 0:01:42]} 20. Nd5 {[%clk 0:02:17.9]} 20... Ne7 {[%clk 0:01:22.7]} 21.
Nxb6 {[%clk 0:02:04.9]} 21... cxb6 {[%clk 0:01:23.6]} 22. Be3 {[%clk 0:02:04.4]}
22... Nc5 {[%clk 0:01:11]} 23. Rad1 {[%clk 0:02:01.8]} 23... Qc7 {[%clk
0:01:06.8]} 24. Bxc5 {[%clk 0:01:58.5]} 24... bxc5 {[%clk 0:00:56.3]} 25. Rd7
{[%clk 0:01:56]} 25... Qb8 {[%clk 0:00:52.7]} 26. Rxb7 {[%clk 0:01:50.7]} 26...
Qd6 {[%clk 0:00:52.1]} 27. Rd1 {[%clk 0:01:45.3]} 27... Qf6 {[%clk 0:00:49.1]}
28. Qxc5 {[%clk 0:01:44.2]} 28... Bh5 {[%clk 0:00:37.4]} 29. Rd6 {[%clk
0:01:41.1]} 29... Qf4 {[%clk 0:00:33.4]} 30. Qe3 {[%clk 0:01:36]} 30... Qxe3
{[%clk 0:00:31.1]} 31. fxe3 {[%clk 0:01:36.1]} 31... Rad8 {[%clk 0:00:28.9]} 32.
Rxd8 {[%clk 0:01:33.7]} 32... Rxd8 {[%clk 0:00:29]} 33. Rxe7 {[%clk 0:01:34.3]}
1-0

[Event "Early-Titled-Tuesday-Blitz-October-10-2023"]
[Site "Chess.com"]
[Date "2023.10.10"]
[Round "1"]
[White "slorovel"]
[Black "Denis_Makhnyov"]
[Result "0-1"]
[WhiteElo "2508"]
[BlackElo "2955"]
[TimeControl "180+1"]
[EndTime "8:05:43 PDT"]
[Termination "Denis_Makhnyov won by resignation"]

1. e4 {[%clk 0:02:59.1]} 1... e5 {[%clk 0:02:59.9]} 2. Nf3 {[%clk 0:02:57.7]}
2... Nc6 {[%clk 0:03:00.3]} 3. Bc4 {[%clk 0:02:57.2]} 3... Bc5 {[%clk 0:03:00]}
4. O-O {[%clk 0:02:57.3]} 4... Nf6 {[%clk 0:03:00]} 5. Re1 {[%clk 0:02:57.3]}
5... d6 {[%clk 0:02:58.8]} 6. c3 {[%clk 0:02:56.3]} 6... O-O {[%clk 0:02:53.3]}
7. h3 {[%clk 0:02:53.2]} 7... Bb6 {[%clk 0:02:43.9]} 8. d3 {[%clk 0:02:52.8]}
8... h6 {[%clk 0:02:42.1]} 9. Nbd2 {[%clk 0:02:51.9]} 9... Re8 {[%clk
0:02:41.5]} 10. Nf1 {[%clk 0:02:51.9]} 10... Ne7 {[%clk 0:02:31.3]} 11. Ng3
{[%clk 0:02:47.1]} 11... c6 {[%clk 0:02:31.3]} 12. Bb3 {[%clk 0:02:43.8]} 12...
Ng6 {[%clk 0:02:27.4]} 13. d4 {[%clk 0:02:26.2]} 13... Ba5 {[%clk 0:02:20.3]}
14. dxe5 {[%clk 0:02:13.2]} 14... dxe5 {[%clk 0:02:18.4]} 15. Qxd8 {[%clk
0:02:03.6]} 15... Rxd8 {[%clk 0:02:18.7]} 16. Be3 {[%clk 0:02:04]} 16... Bb6
{[%clk 0:02:16.4]} 17. Red1 {[%clk 0:01:50.3]} 17... Re8 {[%clk 0:02:15.9]} 18.
Bxb6 {[%clk 0:01:18.6]} 18... axb6 {[%clk 0:02:16.8]} 19. a3 {[%clk 0:01:18.2]}
19... Nf4 {[%clk 0:02:13.5]} 20. Bc2 {[%clk 0:01:17]} 20... Be6 {[%clk
0:02:10.6]} 21. Rd2 {[%clk 0:01:11.5]} 21... g6 {[%clk 0:01:29.9]} 22. Rad1
{[%clk 0:01:10.4]} 22... Bc4 {[%clk 0:01:29.3]} 23. Kh2 {[%clk 0:00:40]} 23...
Kg7 {[%clk 0:01:28.3]} 24. Nf1 {[%clk 0:00:40]} 24... Be2 {[%clk 0:01:26.6]} 25.
Re1 {[%clk 0:00:40]} 25... Bxf3 {[%clk 0:01:26.6]} 26. gxf3 {[%clk 0:00:40.9]}
26... Rad8 {[%clk 0:01:25.1]} 27. Red1 {[%clk 0:00:41.1]} 27... Rxd2 {[%clk
0:01:25.2]} 28. Rxd2 {[%clk 0:00:42]} 28... Kf8 {[%clk 0:01:25.6]} 29. Ne3
{[%clk 0:00:39.5]} 29... b5 {[%clk 0:01:25.7]} 30. c4 {[%clk 0:00:36.5]} 30...
Ne6 {[%clk 0:01:17.8]} 31. cxb5 {[%clk 0:00:34.1]} 31... Nd4 {[%clk 0:01:18.1]}
32. Nd5 {[%clk 0:00:34.7]} 32... cxd5 {[%clk 0:01:14.9]} 0-1

[Event "Early-Titled-Tuesday-Blitz-October-10-2023"]
[Site "Chess.com"]
[Date "2023.10.10"]
[Round "1"]
[White "toog"]
[Black "stratacticos"]
[Result "1-0"]
[WhiteElo "2529"]
[BlackElo "1786"]
[TimeControl "180+1"]
[EndTime "8:05:43 PDT"]
[Termination "toog won by resignation"]

1. c4 {[%clk 0:02:59.4]} 1... Nf6 {[%clk 0:02:59.2]} 2. g3 {[%clk 0:02:58.8]}
2... g6 {[%clk 0:02:57.9]} 3. Bg2 {[%clk 0:02:59]} 3... Bg7 {[%clk 0:02:57.8]}
4. Nf3 {[%clk 0:02:59]} 4... c6 {[%clk 0:02:57.3]} 5. O-O {[%clk 0:02:58.4]}
5... d5 {[%clk 0:02:56.5]} 6. cxd5 {[%clk 0:02:58.3]} 6... cxd5 {[%clk
0:02:56.2]} 7. d4 {[%clk 0:02:59.2]} 7... O-O {[%clk 0:02:54.2]} 8. Nc3 {[%clk
0:02:59]} 8... Ne4 {[%clk 0:02:54]} 9. Bf4 {[%clk 0:02:53.8]} 9... Nxc3 {[%clk
0:02:51.9]} 10. bxc3 {[%clk 0:02:54.7]} 10... Nc6 {[%clk 0:02:52.1]} 11. Qa4
{[%clk 0:02:51]} 11... a6 {[%clk 0:02:46.7]} 12. c4 {[%clk 0:02:38.4]} 12... e6
{[%clk 0:02:27.6]} 13. cxd5 {[%clk 0:02:36.1]} 13... exd5 {[%clk 0:02:26.4]} 14.
Rac1 {[%clk 0:02:28.5]} 14... b5 {[%clk 0:02:19.6]} 15. Qd1 {[%clk 0:02:23.6]}
15... Na5 {[%clk 0:02:18.5]} 16. Ne5 {[%clk 0:02:23.2]} 16... Nc4 {[%clk
0:02:17.6]} 17. a4 {[%clk 0:02:01.2]} 17... Be6 {[%clk 0:02:07.9]} 18. Qb3
{[%clk 0:01:56.6]} 18... bxa4 {[%clk 0:02:02.8]} 19. Qxa4 {[%clk 0:01:55.2]}
19... Nxe5 {[%clk 0:01:37.4]} 20. Bxe5 {[%clk 0:01:54.6]} 20... Bxe5 {[%clk
0:01:33.5]} 21. dxe5 {[%clk 0:01:55.5]} 21... Qd7 {[%clk 0:01:15.1]} 22. Qxd7
{[%clk 0:01:54.2]} 22... Bxd7 {[%clk 0:01:14.9]} 23. Bxd5 {[%clk 0:01:55]} 23...
Rab8 {[%clk 0:01:10.8]} 24. Rc7 {[%clk 0:01:52.2]} 24... Bb5 {[%clk 0:01:09.8]}
25. e6 {[%clk 0:01:40.5]} 25... fxe6 {[%clk 0:01:06.2]} 26. Bxe6+ {[%clk
0:01:41.4]} 26... Kh8 {[%clk 0:01:05.6]} 27. Rd1 {[%clk 0:01:21.1]} 27... Rbd8
{[%clk 0:01:04.3]} 28. Rxd8 {[%clk 0:01:16.2]} 28... Rxd8 {[%clk 0:01:03.8]} 29.
e3 {[%clk 0:01:16.5]} 29... h5 {[%clk 0:00:47.5]} 30. h3 {[%clk 0:01:12.8]}
30... Rd1+ {[%clk 0:00:40]} 31. Kg2 {[%clk 0:01:11.7]} 31... Bf1+ {[%clk
0:00:39.5]} 32. Kf3 {[%clk 0:01:08.1]} 32... Bxh3 {[%clk 0:00:38.7]} 33. Bxh3
{[%clk 0:01:07.5]} 1-0

[Event "Early-Titled-Tuesday-Blitz-October-10-2023"]
[Site "Chess.com"]
[Date "2023.10.10"]
[Round "1"]
[White "eljanov"]
[Black "Tonychess32"]
[Result "1-0"]
[WhiteElo "2907"]
[BlackElo "2502"]
[TimeControl "180+1"]
[EndTime "8:05:44 PDT"]
[Termination "eljanov won on time"]

1. e4 {[%clk 0:03:00.9]} 1... e6 {[%clk 0:02:58.2]} 2. d4 {[%clk 0:03:00]} 2...
d5 {[%clk 0:02:58.3]} 3. e5 {[%clk 0:03:00.5]} 3... c5 {[%clk 0:02:58.1]} 4. c3
{[%clk 0:03:01]} 4... Nc6 {[%clk 0:02:58.2]} 5. Nf3 {[%clk 0:03:01.5]} 5... cxd4
{[%clk 0:02:58.1]} 6. cxd4 {[%clk 0:03:01.3]} 6... Nge7 {[%clk 0:02:58.3]} 7.
Nc3 {[%clk 0:02:56.3]} 7... Nf5 {[%clk 0:02:58.1]} 8. g4 {[%clk 0:02:42.1]} 8...
Nh4 {[%clk 0:02:51.4]} 9. Nxh4 {[%clk 0:02:32.1]} 9... Qxh4 {[%clk 0:02:51.2]}
10. Be3 {[%clk 0:02:32.5]} 10... a6 {[%clk 0:02:38.7]} 11. Be2 {[%clk
0:02:27.5]} 11... Be7 {[%clk 0:02:11.7]} 12. O-O {[%clk 0:02:25.9]} 12... h5
{[%clk 0:01:59.4]} 13. gxh5 {[%clk 0:02:23.3]} 13... g6 {[%clk 0:01:49.3]} 14.
Kh1 {[%clk 0:02:09.6]} 14... gxh5 {[%clk 0:01:32.9]} 15. Rg1 {[%clk 0:02:09.8]}
15... Bd7 {[%clk 0:01:33.1]} 16. a3 {[%clk 0:01:55.1]} 16... O-O-O {[%clk
0:01:22.2]} 17. b4 {[%clk 0:01:54.8]} 17... Rdg8 {[%clk 0:01:19.4]} 18. Rg3
{[%clk 0:01:33.5]} 18... Bg5 {[%clk 0:01:03.7]} 19. Qg1 {[%clk 0:01:26.5]} 19...
Nxd4 {[%clk 0:00:05.8]} 20. Rxg5 {[%clk 0:01:25.4]} 20... Rxg5 {[%clk
0:00:04.4]} 21. Qxg5 {[%clk 0:01:25.5]} 21... Qxg5 {[%clk 0:00:04.5]} 22. Bxg5
{[%clk 0:01:25.4]} 22... Nxe2 {[%clk 0:00:04.8]} 23. Nxe2 {[%clk 0:01:25.4]}
23... d4 {[%clk 0:00:04.1]} 24. Nxd4 {[%clk 0:01:25.3]} 24... Rg8 {[%clk
0:00:02.3]} 25. h4 {[%clk 0:01:25.1]} 25... Ba4 {[%clk 0:00:02]} 26. Rc1+ {[%clk
0:01:24.7]} 26... Kb8 {[%clk 0:00:02]} 27. Kg2 {[%clk 0:01:22.3]} 1-0

[Event "Early-Titled-Tuesday-Blitz-October-10-2023"]
[Site "Chess.com"]
[Date "2023.10.10"]
[Round "1"]
[White "CFN_Good_Evening"]
[Black "FERNANDEZL1983"]
[Result "0-1"]
[WhiteElo "1627"]
[BlackElo "2527"]
[TimeControl "180+1"]
[EndTime "8:05:47 PDT"]
[Termination "FERNANDEZL1983 won by resignation"]

1. Nf3 {[%clk 0:02:54.9]} 1... d5 {[%clk 0:02:59.1]} 2. d4 {[%clk 0:02:53.8]}
2... Nf6 {[%clk 0:02:57.9]} 3. Nc3 {[%clk 0:02:53.7]} 3... e6 {[%clk 0:02:57.6]}
4. Bg5 {[%clk 0:02:52.2]} 4... Bb4 {[%clk 0:02:56.3]} 5. Nd2 {[%clk 0:02:25.9]}
5... c5 {[%clk 0:02:54]} 6. a3 {[%clk 0:02:08.8]} 6... Bxc3 {[%clk 0:02:51.1]}
7. bxc3 {[%clk 0:02:09.7]} 7... Nbd7 {[%clk 0:02:49.2]} 8. e4 {[%clk 0:02:07.7]}
8... h6 {[%clk 0:02:46.7]} 9. Bxf6 {[%clk 0:02:00.2]} 9... Nxf6 {[%clk
0:02:46.4]} 10. e5 {[%clk 0:01:59]} 10... Nd7 {[%clk 0:02:47]} 11. Bd3 {[%clk
0:01:58.8]} 11... O-O {[%clk 0:02:47.5]} 12. O-O {[%clk 0:01:58.1]} 12... c4
{[%clk 0:02:48]} 13. Be2 {[%clk 0:01:56.7]} 13... Qa5 {[%clk 0:02:48.2]} 14. Nb1
{[%clk 0:01:29.6]} 14... f6 {[%clk 0:02:47.4]} 15. f4 {[%clk 0:01:28.4]} 15...
Qb6 {[%clk 0:02:43.8]} 16. Kh1 {[%clk 0:01:21.5]} 16... Qb2 {[%clk 0:02:43]} 17.
Nd2 {[%clk 0:01:13.5]} 17... Qxc3 {[%clk 0:02:39.1]} 18. Nf3 {[%clk 0:00:57.3]}
18... Qe3 {[%clk 0:02:35.5]} 19. g3 {[%clk 0:00:30.3]} 19... b5 {[%clk
0:02:27.2]} 20. Nh4 {[%clk 0:00:23.1]} 20... fxe5 {[%clk 0:02:20.3]} 21. dxe5
{[%clk 0:00:20.8]} 21... d4 {[%clk 0:02:13.6]} 22. Bf3 {[%clk 0:00:18.5]} 22...
Rb8 {[%clk 0:02:09.7]} 23. Re1 {[%clk 0:00:18]} 23... Qc3 {[%clk 0:02:09.8]} 24.
Rb1 {[%clk 0:00:17.7]} 24... Nc5 {[%clk 0:02:09.7]} 25. Ng6 {[%clk 0:00:16.4]}
25... Rd8 {[%clk 0:02:03.6]} 26. Kg2 {[%clk 0:00:16.6]} 26... Bb7 {[%clk
0:02:02.2]} 27. Bxb7 {[%clk 0:00:15]} 27... Rxb7 {[%clk 0:02:02.4]} 28. Qg4
{[%clk 0:00:15.6]} 28... Qxc2+ {[%clk 0:02:00.7]} 29. Kh3 {[%clk 0:00:16.2]}
29... Qf5 {[%clk 0:01:55.4]} 30. Qxf5 {[%clk 0:00:16.4]} 30... exf5 {[%clk
0:01:55.5]} 31. e6 {[%clk 0:00:17.3]} 31... Re8 {[%clk 0:01:54.5]} 32. e7 {[%clk
0:00:17.4]} 32... Nd3 {[%clk 0:01:54.4]} 33. Re6 {[%clk 0:00:16.3]} 33... Kf7
{[%clk 0:01:54.4]} 34. Rd6 {[%clk 0:00:13.8]} 34... Nf2+ {[%clk 0:01:51.6]} 35.
Kg2 {[%clk 0:00:13.6]} 35... Ne4 {[%clk 0:01:51.9]} 36. Rxd4 {[%clk 0:00:13.4]}
36... Kxg6 {[%clk 0:01:51.7]} 37. Rxc4 {[%clk 0:00:12.6]} 37... bxc4 {[%clk
0:01:51]} 38. Rxb7 {[%clk 0:00:13.1]} 38... c3 {[%clk 0:01:51.5]} 39. Rc7 {[%clk
0:00:13.3]} 39... Kf7 {[%clk 0:01:51.4]} 40. Kf3 {[%clk 0:00:13.7]} 40... Rxe7
{[%clk 0:01:51.7]} 41. Rc6 {[%clk 0:00:13]} 41... Rd7 {[%clk 0:01:51.3]} 0-1